bitfinex/quotes_ETHUSD_20241119
["timestamp","ask_amount","ask_price","bid_price","bid_amount"]
[1732043602758,0.23711892,3135.1,3134.6,0.7681]
[1732043602957,3.739,3135.8,3134.6,0.7681]
[1732043603259,0.373916,3135.6,3134.6,0.7681]
[1732043603587,0.23709199,3135.0,3134.6,0.7681]
[1732043603750,0.23709057,3134.9,3134.6,0.7681]
[1732043604091,0.23709057,3134.8,3134.6,0.7681]
[1732043604384,0.23709199,3135.0,3134.6,0.7681]
[1732043604681,0.23711457,3134.9,3134.6,0.7681]
[1732043604884,0.23709199,3135.0,3134.6,0.3192]
[1732043605091,0.23709199,3135.0,3134.9,1.1074]
[1732043606090,3.18828,3136.5,3135.9,8.75613212]
[1732043606382,3.18828,3136.5,3135.6,0.7882]
[1732043606613,3.507208,3136.4,3135.6,0.7882]
[1732043606752,3.18817,3136.6,3135.6,0.7882]
[1732043606943,3.18834,3136.5,3135.6,0.7882]
[1732043607147,0.318834,3136.4,3135.6,0.7882]
[1732043607352,3.18783,3137.0,3135.6,0.7882]
[1732043607569,3.18725,3137.5,3135.6,0.7882]
[1732043607775,3.507075,3137.4,3135.6,0.7882]
[1732043607961,3.18805,3136.8,3135.6,0.7882]
[1732043608174,3.18787,3136.9,3135.6,0.7882]
[1732043608483,3.1877,3137.1,3135.6,0.7882]
[1732043608682,3.2767553,3137.6,3135.6,0.7882]
[1732043608683,3.18801,3136.8,3135.6,0.7882]
[1732043608844,0.32767553,3137.5,3135.8,0.8073]
[1732043609049,3.2667353,3137.6,3135.8,0.8073]
[1732043609275,3.18696,3137.8,3135.8,0.8173]
[1732043609488,0.318696,3137.7,3136.0,0.8173]
[1732043609654,3.18658,3138.2,3136.1,0.3192]
[1732043609859,0.08042277,3138.3,3136.2,0.8073]
[1732043610086,6.38279,3138.4,3136.2,0.8073]
[1732043610294,3.19637,3138.4,3136.2,0.8073]
[1732043610449,3.19637,3138.4,3136.3,0.8065]
[1732043610784,6.18647,3138.3,3136.3,0.8065]
[1732043610987,0.938284,3138.2,3136.5,0.7877]
[1732043611358,0.55,3138.1,3136.5,0.7877]
[1732043611761,0.938284,3138.2,3136.6,0.8514446]
[1732043611991,3.07761279,3138.4,3136.6,0.8514446]
[1732043611992,0.07761279,3138.4,3136.6,0.7877]
[1732043612287,3.1868,3138.0,3136.6,0.7877]
[1732043612599,3.18701,3137.8,3136.6,0.7877]
[1732043612749,3.505811,3137.7,3136.6,0.7877]
[1732043612955,3.18737,3137.4,3136.6,0.7877]
[1732043613351,0.55,3137.3,3136.6,0.7877]
[1732043614070,3.55,3137.3,3135.7,0.8263]
[1732043614268,0.373737,3137.2,3135.7,0.8263]
[1732043614765,3.18765,3137.1,3135.7,0.8263]
[1732043615348,3.561307,3137.2,3135.7,0.8263]
[1732043615693,4.5798787,3137.1,3135.7,0.8263]
[1732043615984,0.55,3137.1,3135.7,0.8263]
[1732043616198,0.55,3137.2,3135.7,0.8263]
[1732043616550,0.55,3137.4,3135.9,0.8263]
[1732043616761,0.55,3137.4,3136.0,0.8263]
[1732043617287,0.55,3137.6,3136.2,0.8263]
[1732043617505,0.9005651,3137.6,3136.2,0.8263]
[1732043617652,0.3505651,3137.6,3136.2,0.8263]
[1732043617851,3.26552626,3138.0,3136.3,0.8263]
[1732043618052,0.23668699,3137.9,3136.3,0.8263]
[1732043618253,0.57903169,3137.8,3136.3,0.8263]
[1732043618484,0.23668699,3137.7,3136.4,0.8263]
[1732043618687,0.23668699,3137.6,3136.4,0.8263]
[1732043618852,0.23668699,3137.5,3136.4,0.8263]
[1732043619052,0.23668699,3137.4,3136.4,0.8263]
[1732043619311,0.23668699,3137.3,3136.4,0.8263]
[1732043619458,0.23668699,3137.9,3136.4,0.8263]
[1732043619812,0.23668699,3137.8,3136.4,0.7611]
[1732043620102,0.23668699,3137.7,3136.4,0.7611]
[1732043620303,0.23668699,3137.6,3136.4,0.7611]
[1732043620511,0.23668699,3137.5,3136.4,0.7611]
[1732043620799,3.18631,3138.5,3138.0,8.54331301]
[1732043620956,3.18631,3138.5,3137.9,0.7935]
[1732043622462,3.18656,3138.2,3137.6,0.782]
[1732043622665,3.18677,3138.0,3137.6,0.782]
[1732043622910,3.18688,3137.9,3137.6,0.782]
[1732043623058,3.505336,3138.1,3137.6,0.782]
[1732043623264,3.18684,3137.9,3137.3,0.782]
[1732043623875,3.18684,3137.9,3136.4,0.02407932]
[1732043623876,3.01,3138.4,3136.6,0.782]
[1732043624064,3.18751,3137.3,3136.6,0.782]
[1732043624390,0.56,3137.8,3136.6,0.782]
[1732043624712,0.55,3137.6,3136.6,0.782]
[1732043625164,3.55,3137.9,3136.6,0.782]
[1732043625561,6.73685,3137.9,3136.6,0.782]
[1732043625804,0.55,3137.7,3136.6,0.782]
[1732043626000,0.55,3137.5,3136.6,0.782]
[1732043626361,0.55,3137.6,3136.6,0.782]
[1732043626762,3.18728,3137.5,3136.6,0.782]
[1732043627111,0.55,3137.4,3136.6,0.782]
[1732043627312,3.18728,3137.5,3136.6,0.782]
[1732043627603,0.55,3137.4,3136.6,0.782]
[1732043627789,0.55,3137.2,3136.6,0.782]
[1732043627963,3.55,3137.2,3136.6,0.782]
[1732043628166,0.55,3137.2,3136.6,0.782]
[1732043628361,3.18757,3137.2,3136.6,0.782]
[1732043628675,0.55,3137.1,3136.6,0.782]
[1732043628877,0.55,3137.1,3135.5,0.8026]
[1732043629092,0.55,3137.1,3135.5,0.07912882]
[1732043629401,0.55,3137.2,3135.6,0.8026]
[1732043629602,0.55,3137.2,3135.8,0.8026]
[1732043629779,0.55,3137.2,3135.6,0.45396603]
[1732043629780,0.55,3137.2,3136.0,0.8026]
[1732043631274,0.3868721,3137.3,3136.1,0.83679012]
[1732043631478,3.18682,3138.0,3136.1,0.8026]
[1732043631696,0.318682,3137.9,3136.3,0.8026]
[1732043631869,0.318682,3137.9,3136.4,0.8026]
[1732043632071,3.18682,3138.0,3136.5,0.8026]
[1732043632072,0.3505502,3137.8,3136.5,0.8026]
[1732043632719,0.55,3137.7,3136.5,0.8026]
[1732043632868,0.23702975,3137.6,3136.5,0.8026]
[1732043633074,0.63443773,3137.5,3136.5,0.8026]
[1732043633300,0.23702975,3137.4,3136.5,0.8026]
[1732043633575,0.23702975,3137.3,3136.5,0.8026]
[1732043633793,0.23702975,3137.2,3136.5,0.8026]
[1732043633993,0.23702975,3137.1,3136.5,0.8026]
[1732043634170,0.23702975,3137.0,3136.5,0.8026]
[1732043634365,0.23702975,3136.9,3136.5,0.8026]
[1732043634592,3.1875,3137.3,3136.5,0.8026]
[1732043634869,3.18768,3137.1,3136.5,0.8026]
[1732043635468,0.23738332,3137.0,3136.5,0.8026]
[1732043635672,0.23738332,3136.9,3136.5,0.8026]
[1732043635997,0.23738332,3136.8,3136.5,0.8026]
[1732043636310,0.23738332,3136.7,3136.5,0.8026]
[1732043636503,0.23738332,3136.6,3136.5,0.8026]
[1732043638408,0.23738332,3136.6,3135.6,0.8076]
[1732043638715,0.23738332,3136.5,3135.7,0.8076]
[1732043638909,0.23738332,3136.4,3135.7,0.8076]
[1732043639127,0.23738332,3136.3,3135.7,0.8076]
[1732043639428,0.23738332,3136.2,3135.7,0.8076]
[1732043639628,0.23738332,3136.1,3135.7,0.8076]
[1732043639828,0.23738332,3136.0,3135.7,0.8076]
[1732043639987,0.23738332,3135.9,3135.7,0.8076]
[1732043640187,0.55,3136.7,3136.5,9.36361668]
[1732043640433,0.55,3136.7,3136.5,0.821]
[1732043640592,0.923799,3136.7,3136.5,0.821]
[1732043640994,4.111879,3136.7,3136.5,0.821]
[1732043642020,3.18816,3136.6,3136.5,0.821]
[1732043642408,3.18816,3136.6,3136.1,0.7805]
[1732043643105,0.923799,3136.7,3136.1,0.7805]
[1732043643989,0.373799,3136.7,3136.1,0.7805]
[1732043644195,3.18824,3136.6,3136.1,0.7805]
[1732043644597,6.37572,3136.9,3136.1,0.7805]
[1732043644797,3.18822,3136.6,3136.1,0.7805]
[1732043646050,3.1884,3136.4,3136.1,0.7805]
[1732043646260,3.88730485,3136.3,3135.4,0.8095]
[1732043646457,0.37991485,3136.2,3135.4,0.8095]
[1732043646662,0.37991485,3136.1,3135.4,0.8095]
[1732043646821,0.67700803,3136.0,3135.4,0.8095]
[1732043647018,0.67700803,3135.9,3135.4,0.8095]
[1732043647251,0.29709318,3135.8,3135.4,0.8095]
[1732043647455,0.29709318,3135.7,3135.4,0.8095]
[1732043647662,0.29691798,3135.6,3135.4,0.8095]
[1732043647878,3.18829,3136.5,3136.3,8.10316717]
[1732043648069,3.18829,3136.5,3135.4,0.8095]
[1732043648247,3.73791,3136.9,3135.4,0.8095]
[1732043648436,5.48605229,3137.1,3135.4,0.45396603]
[1732043648437,3.18773,3137.1,3135.4,0.45396603]
[1732043648631,3.18776,3137.0,3135.6,0.7766]
[1732043648862,3.18759,3137.2,3135.6,0.8221912]
[1732043649277,3.18746,3137.3,3135.7,0.7766]
[1732043649559,3.18755,3137.2,3135.8,0.7766]
[1732043649766,3.18755,3137.2,3135.9,0.3192]
[1732043649938,3.18755,3137.2,3136.0,0.7536]
[1732043650120,5.48605229,3137.3,3136.0,0.7536]
[1732043650349,0.07887961,3137.5,3136.0,0.7536]
[1732043650350,11.86123229,3137.2,3136.0,0.7536]
[1732043650523,3.18755,3137.2,3136.0,0.7536]
[1732043650722,3.18762,3137.2,3136.0,0.7536]
[1732043651160,3.18765,3137.1,3136.0,0.7536]
[1732043651559,3.18777,3137.0,3136.0,0.7536]
[1732043651729,8.68366322,3136.9,3136.0,0.7536]
[1732043652051,3.73796,3136.8,3136.0,0.7536]
[1732043652251,0.23778494,3136.7,3136.0,0.7536]
[1732043652457,3.73796,3136.8,3136.0,0.7536]
[1732043652458,0.23778494,3136.6,3136.0,0.7536]
[1732043652663,0.23778494,3136.5,3136.0,0.7536]
[1732043652861,0.23778494,3136.4,3136.0,0.7536]
[1732043653067,0.23778494,3136.3,3136.0,0.7536]
[1732043653272,0.23778494,3136.2,3136.0,0.7536]
[1732043653575,1.01571595,3136.7,3136.0,0.7536]
[1732043653772,0.23787086,3136.6,3136.0,0.7536]
[1732043653939,0.23787086,3136.5,3136.0,0.7536]
[1732043654143,0.23787086,3136.4,3136.0,0.7536]
[1732043654471,0.23787086,3136.3,3136.0,0.7536]
[1732043654773,1.01571595,3136.7,3136.0,0.7536]
[1732043655059,4.45108884,3136.6,3136.0,0.7536]
[1732043655271,0.23792792,3136.5,3136.1,0.81069149]
[1732043655480,0.23792792,3136.4,3136.1,0.81069149]
[1732043655775,0.23792792,3136.3,3136.1,0.81069149]
[1732043656061,0.23792792,3136.2,3136.1,0.45396603]
[1732043656755,0.23792792,3136.2,3136.0,0.7536]
[1732043656904,0.23792792,3136.1,3136.0,0.7536]
[1732043658118,8.68790411,3137.1,3136.0,0.7536]
[1732043658316,0.2379564,3136.1,3136.0,0.7536]
[1732043659644,3.18793,3136.9,3136.5,8.5420436]
[1732043659854,5.50018411,3137.0,3136.5,8.5420436]
[1732043659855,0.29744677,3136.8,3136.5,8.5420436]
[1732043660040,0.29744677,3136.7,3136.6,0.8141]
[1732043660920,5.50018411,3137.2,3136.6,0.8141]
[1732043661109,5.50018411,3137.3,3136.6,0.8141]
[1732043661317,8.68766411,3137.3,3136.6,0.8141]
[1732043661534,5.50018411,3137.2,3136.6,0.8141]
[1732043661869,8.68766411,3137.3,3136.6,0.8141]
[1732043662531,3.18748,3137.3,3136.6,0.8141]
[1732043662726,9.87516052,3137.3,3136.6,0.8141]
[1732043662950,8.68766411,3137.3,3136.6,0.8141]
[1732043663266,3.0,3137.2,3136.6,0.8141]
[1732043663426,3.18767,3137.1,3136.6,0.8141]
[1732043663827,8.50018411,3137.2,3136.6,0.8141]
[1732043664061,3.18778,3137.0,3136.6,0.8141]
[1732043664228,0.3808305,3136.9,3136.3,0.7945]
[1732043664436,0.3808305,3136.8,3136.3,0.7945]
[1732043664644,0.3808305,3136.7,3136.3,0.7945]
[1732043664837,0.3808305,3136.6,3136.3,0.7945]
[1732043665046,5.50018411,3137.3,3136.3,0.7945]
[1732043665047,0.67844839,3136.5,3136.4,0.45396603]
[1732043665367,6.18758,3137.2,3137.1,8.10155161]
[1732043665577,3.18775,3137.1,3136.4,0.30367707]
[1732043665876,3.18777,3137.0,3136.3,0.7945]
[1732043666243,6.05243185,3137.0,3136.3,0.7945]
[1732043666460,3.18786,3136.9,3136.3,0.7945]
[1732043666626,3.18812,3136.7,3136.0,0.8262]
[1732043666831,1.28464965,3137.5,3136.0,0.8262]
[1732043666832,3.73822,3136.6,3136.0,0.8262]
[1732043667556,0.01,3137.4,3136.0,0.8262]
[1732043667557,6.05243185,3136.7,3136.0,0.8262]
[1732043667946,0.55,3136.7,3136.0,0.8262]
[1732043668647,6.05243185,3136.7,3136.0,0.8262]
[1732043668851,0.55,3136.5,3136.0,0.8262]
[1732043669661,0.55,3136.6,3136.0,0.8262]
[1732043670770,5.50644688,3136.7,3136.0,0.8262]
[1732043670985,5.50644688,3136.9,3136.0,0.8262]
[1732043671585,0.23800028,3136.8,3136.0,0.8262]
[1732043671873,0.23800028,3136.7,3136.1,0.3192]
[1732043672181,5.50644688,3136.8,3136.1,0.3192]
[1732043672383,0.23799582,3136.6,3136.1,0.3192]
[1732043672584,0.55,3136.5,3135.5,1.1503]
[1732043672877,0.55,3136.3,3135.5,1.1503]
[1732043673085,0.55,3136.1,3135.5,1.1503]
[1732043673465,0.23799582,3136.0,3135.5,1.1503]
[1732043673664,0.23799582,3135.9,3135.5,1.1503]
[1732043673854,0.23799582,3135.8,3135.5,1.1503]
[1732043674054,0.23799582,3135.7,3135.5,1.1503]
[1732043674255,0.23799582,3135.6,3135.5,0.8311]
[1732043675268,0.71410467,3135.6,3135.5,0.8311]
[1732043675438,0.55,3135.5,3134.4,0.8306]
[1732043675645,0.55,3135.3,3134.4,0.8306]
[1732043675960,0.55,3135.1,3134.4,0.8306]
[1732043676162,0.55,3134.9,3134.4,0.8306]
[1732043676771,0.63555838,3134.8,3134.4,0.8306]
[1732043676992,0.55,3134.9,3134.4,0.8306]
[1732043676993,0.23779944,3134.7,3134.4,0.8306]
[1732043677199,0.53447911,3134.6,3134.4,0.8306]
[1732043677404,0.53447911,3134.5,3134.4,0.8306]
[1732043677695,0.29667967,3134.5,3134.4,0.8306]
[1732043678385,0.53384338,3134.5,3134.4,0.8306]
[1732043678562,0.29667967,3134.5,3134.4,0.8306]
[1732043679089,0.29645425,3134.5,3134.4,0.8306]
[1732043679490,0.55,3135.2,3134.4,0.8306]
[1732043679798,0.53333608,3135.1,3134.4,0.8306]
[1732043679999,0.53333608,3135.0,3134.4,0.8306]
[1732043680197,5.5065773,3136.0,3135.6,8.48370175]
[1732043680506,0.23700995,3135.9,3135.3,0.7827]
[1732043680673,0.23700995,3135.8,3135.3,0.7827]
[1732043680861,0.23700995,3135.8,3134.3,3.0]
[1732043680862,0.23700995,3135.7,3134.3,3.758]
[1732043681061,0.71618362,3135.6,3134.3,0.658]
[1732043681302,0.61618362,3135.5,3134.3,0.658]
[1732043681466,1.16618362,3135.4,3134.3,0.658]
[1732043681660,0.55,3135.2,3134.3,0.658]
[1732043681867,0.55,3135.0,3134.3,0.658]
[1732043682062,0.55,3134.8,3134.3,0.658]
[1732043682372,0.23700995,3134.7,3134.3,0.658]
[1732043682576,0.55,3134.6,3134.3,0.658]
[1732043682885,0.23700995,3134.5,3134.3,0.658]
[1732043683061,0.37917367,3135.1,3134.3,0.658]
[1732043683263,0.78668765,3135.0,3134.3,0.658]
[1732043683458,0.55,3134.8,3134.3,0.658]
[1732043683684,0.23668765,3134.7,3134.3,0.658]
[1732043685493,0.55,3134.6,3133.3,0.7685]
[1732043685702,0.23668765,3134.5,3133.7,3.0]
[1732043685869,0.23668765,3134.5,3133.4,0.7685]
[1732043686065,0.23668765,3134.5,3133.4,3.7685]
[1732043686417,0.23668765,3134.5,3133.5,0.7685]
[1732043686785,0.23668765,3134.5,3133.6,0.7599]
[1732043687325,0.55,3134.9,3133.6,0.7599]
[1732043687485,0.78632711,3134.8,3133.6,0.7599]
[1732043687686,0.55,3134.6,3133.6,0.7599]
[1732043688287,0.55,3134.8,3133.6,0.7599]
[1732043688473,0.23628958,3134.7,3133.6,0.7599]
[1732043688676,0.17997955,3135.2,3133.7,0.7653]
[1732043688973,0.23629874,3135.1,3133.7,0.7653]
[1732043689189,0.23629874,3135.1,3133.9,1.0835]
[1732043689442,0.1,3135.7,3134.2,0.7653]
[1732043689787,0.23632071,3135.6,3134.2,0.7653]
[1732043690219,0.1,3135.7,3134.2,0.7653]
[1732043690220,0.23632071,3135.5,3134.2,1.19034144]
[1732043690391,0.23632071,3135.4,3134.2,1.19034144]
[1732043690603,0.23632071,3135.3,3134.2,0.7653]
[1732043690915,0.23632071,3135.2,3134.2,0.7653]
[1732043691229,0.55,3135.6,3134.2,0.7653]
[1732043691441,0.23640026,3135.5,3134.2,0.7653]
[1732043691584,0.78640026,3135.4,3134.2,0.7653]
[1732043691788,0.55,3135.2,3134.2,0.7653]
[1732043692008,0.23640026,3135.1,3134.2,0.7653]
[1732043692225,0.2955327,3135.0,3134.2,0.7653]
[1732043692398,0.53193296,3134.9,3134.2,0.7653]
[1732043692730,0.2955327,3134.8,3134.2,0.7653]
[1732043693027,0.65,3135.2,3134.2,0.7653]
[1732043693229,0.53198893,3135.1,3134.2,0.7653]
[1732043693425,1.08198893,3135.0,3134.2,0.7653]
[1732043693743,0.53198893,3134.9,3134.2,0.7653]
[1732043694029,0.53206192,3134.8,3134.2,0.7653]
[1732043694241,0.29555134,3134.7,3134.2,0.7653]
[1732043694446,0.29555134,3134.9,3134.2,0.7653]
[1732043694620,0.2957345,3134.8,3134.2,0.7653]
[1732043694937,0.55,3135.1,3134.2,0.84650206]
[1732043695231,0.53233555,3135.0,3134.2,0.84650206]
[1732043695431,0.29574354,3134.9,3134.3,0.7633]
[1732043695730,0.1,3135.5,3134.3,0.7633]
[1732043695930,0.53261594,3135.4,3134.3,0.7633]
[1732043696232,0.53261594,3135.3,3134.3,0.7633]
[1732043696433,0.23681981,3135.2,3134.3,0.7633]
[1732043696645,0.29602476,3135.1,3134.3,0.7633]
[1732043696794,0.29602476,3135.0,3134.4,0.3182]
[1732043697130,0.29602476,3134.9,3134.4,0.3182]
[1732043697330,0.29602476,3134.8,3134.4,0.3182]
[1732043697542,0.29609492,3135.3,3134.5,0.7727]
[1732043697717,0.53297703,3135.2,3134.5,0.7727]
[1732043697895,1.02891169,3135.8,3134.5,0.7727]
[1732043697896,0.29609824,3135.1,3134.5,0.7727]
[1732043698093,0.29609824,3135.0,3134.7,0.8182]
[1732043698398,0.55,3135.9,3134.7,1.1364]
[1732043698593,0.55,3135.7,3134.7,1.1364]
[1732043698795,0.53314465,3135.6,3134.7,1.1364]
[1732043699147,0.53314465,3135.5,3134.7,1.1364]
[1732043699293,0.53314465,3135.4,3134.8,0.8085]
[1732043699495,0.2961904,3135.3,3134.8,0.8085]
[1732043699718,0.2961904,3135.2,3134.8,0.8085]
[1732043699918,0.18143513,3136.1,3134.8,0.8085]
[1732043699919,0.55,3135.8,3134.8,0.8085]
[1732043700143,0.53317318,3135.7,3134.8,0.8085]
[1732043700313,0.2962057,3135.6,3134.8,0.8085]
[1732043700491,0.2962057,3135.5,3134.8,0.8085]
[1732043700695,0.53317318,3135.4,3134.8,0.8085]
[1732043700939,0.53317318,3135.3,3134.8,0.8085]
[1732043701151,0.2962057,3135.2,3134.8,0.8085]
[1732043701296,0.2962057,3135.1,3134.8,0.8085]
[1732043701495,0.2962057,3135.0,3134.8,0.8085]
[1732043701691,0.2962057,3134.9,3134.8,0.8085]
[1732043702105,0.55,3135.9,3134.8,0.8085]
[1732043702106,0.37891169,3135.6,3134.8,0.8085]
[1732043702309,0.91278945,3135.5,3134.9,0.06374394]
[1732043702531,0.29651836,3135.4,3135.0,0.8158]
[1732043702879,0.29651836,3135.3,3135.0,0.8158]
[1732043703046,0.2373594,3135.5,3135.0,0.8158]
[1732043703047,0.29683519,3135.2,3135.0,0.8158]
[1732043703199,0.29683519,3135.1,3135.0,0.8158]
[1732043703714,0.53438055,3135.1,3135.0,0.8158]
[1732043704135,0.53438055,3135.1,3134.6,0.7585]
[1732043704346,0.53438055,3135.0,3134.6,0.7585]
[1732043704639,0.91426894,3134.9,3134.6,0.7585]
[1732043704933,0.91426894,3134.9,3133.9,0.3182]
[1732043704934,0.53438055,3134.8,3134.0,0.7895]
[1732043705150,0.53438055,3134.7,3134.0,0.7895]
[1732043705323,0.53438055,3134.6,3134.0,0.7895]
[1732043705645,0.53464597,3134.5,3134.0,0.7895]
[1732043705796,0.29683519,3134.5,3134.0,0.7895]
[1732043706000,0.29683519,3134.4,3134.0,0.7895]
[1732043706296,0.93051094,3135.3,3134.0,0.7895]
[1732043706522,0.91548496,3135.2,3134.0,0.7895]
[1732043706731,0.91548496,3135.1,3134.0,0.7895]
[1732043706905,0.91548496,3135.0,3134.0,0.7895]
[1732043707109,0.91548496,3134.9,3134.0,0.7895]
[1732043707463,0.23776221,3134.8,3134.0,0.7895]
[1732043707755,0.23776221,3134.7,3134.0,0.7895]
[1732043707958,0.23776221,3134.6,3134.0,0.7895]
[1732043708253,0.38051094,3134.9,3134.0,0.7895]
[1732043708461,0.23783429,3134.8,3134.0,0.7895]
[1732043708746,0.23783429,3134.7,3134.0,0.7895]
[1732043708967,0.38051094,3135.0,3134.2,0.8302]
[1732043709249,0.2378,3134.9,3134.3,0.42504144]
[1732043709423,0.1,3135.5,3134.2,0.8302]
[1732043710121,0.23777567,3135.4,3134.2,0.8302]
[1732043710333,0.23777567,3135.3,3134.2,0.8302]
[1732043710551,0.23777567,3135.2,3134.2,0.8302]
[1732043710762,0.23777567,3135.1,3134.2,0.8302]
[1732043710910,0.1,3134.9,3133.9,0.07823717]
[1732043711235,0.23777567,3134.8,3133.9,0.7556]
[1732043711444,0.23777567,3134.7,3133.9,0.7556]
[1732043711629,0.23777567,3134.6,3133.9,0.7556]
[1732043711830,0.23777567,3134.5,3134.0,0.3182]
[1732043712061,0.1,3135.2,3134.0,0.3182]
[1732043712245,0.23796388,3135.1,3134.1,0.7556]
[1732043712414,0.54872099,3135.6,3134.1,0.7556]
[1732043712415,0.23796388,3135.0,3134.3,0.7556]
[1732043712750,0.1,3135.5,3134.3,1.0738]
[1732043712751,0.23794001,3134.9,3134.3,1.0738]
[1732043712952,0.23794001,3134.8,3134.3,1.0738]
[1732043713155,0.55,3135.4,3134.3,1.0738]
[1732043713330,0.1,3135.5,3134.3,1.0738]
[1732043713331,0.38076944,3135.3,3134.3,1.51693348]
[1732043713527,0.61874426,3135.2,3134.4,1.0849]
[1732043713736,0.1,3135.8,3134.4,1.0849]
[1732043713737,0.61874426,3135.1,3134.4,1.0849]
[1732043714044,0.23797482,3135.0,3134.4,1.0849]
[1732043714262,0.1,3135.8,3135.6,8.39923056]
[1732043714469,0.23800353,3135.7,3135.3,0.7667]
[1732043714769,0.1,3136.2,3135.3,1.0849]
[1732043715076,0.23792879,3136.1,3135.3,0.7667]
[1732043715224,0.23792879,3136.0,3135.0,0.90938245]
[1732043715429,0.23792879,3136.0,3134.3,3.0]
[1732043715430,0.68058867,3135.9,3134.7,0.831]
[1732043715627,0.1,3135.7,3134.1,0.8254]
[1732043715941,0.55,3135.4,3134.1,0.8254]
[1732043716280,0.23776315,3135.3,3134.2,0.3182]
[1732043716567,0.1,3135.1,3134.1,0.39807894]
[1732043716770,0.23776315,3135.0,3134.1,0.07987894]
[1732043717076,0.23776315,3135.0,3133.8,0.3182]
[1732043717375,0.23776315,3135.0,3134.0,0.816]
[1732043717675,0.23776315,3134.9,3134.0,0.816]
[1732043717851,0.23776315,3134.8,3134.0,3.816]
[1732043718165,0.1,3135.4,3134.2,0.3182]
[1732043718376,0.23775379,3135.3,3134.3,0.8263]
[1732043718541,0.23775379,3135.2,3134.3,0.8263]
[1732043718735,3.0,3136.2,3134.2,3.3182]
[1732043718736,0.23775379,3135.1,3134.5,3.0]
[1732043719042,0.1,3135.7,3134.7,0.8263]
[1732043719228,0.23773084,3135.6,3134.7,0.8263]
[1732043719426,0.23773084,3135.5,3134.5,3.0]
[1732043719789,0.33773084,3135.4,3134.4,0.7867]
[1732043720087,0.1,3135.2,3133.8,0.8239]
[1732043720226,0.23773084,3135.1,3133.8,0.8239]
[1732043720424,0.23773084,3135.0,3133.8,0.8239]
[1732043720626,0.1,3135.2,3133.8,0.8239]
[1732043720627,0.23773084,3134.9,3133.8,1.1421]
[1732043720872,5.49825389,3135.5,3133.8,1.1421]
[1732043720873,0.1,3134.7,3133.8,1.1421]
[1732043721055,0.23773084,3134.6,3133.8,1.1421]
[1732043721256,0.23773084,3134.5,3133.8,1.1421]
[1732043721565,0.23773084,3134.4,3133.8,0.8239]
[1732043721775,0.23773084,3134.3,3133.8,0.8239]
[1732043722078,0.1,3134.7,3133.8,0.8239]
[1732043722253,0.23769574,3134.6,3133.8,0.8239]
[1732043722451,0.23769574,3134.5,3133.8,0.8239]
[1732043722669,0.23769574,3134.4,3133.6,3.0]
[1732043722840,0.23769574,3134.3,3133.4,0.7733]
[1732043723272,0.33769574,3134.2,3133.4,0.7733]
[1732043723584,0.23762845,3134.1,3133.4,0.85397289]
[1732043723885,0.1,3134.2,3133.4,0.85397289]
[1732043724065,0.23755819,3134.1,3133.4,0.7733]
[1732043724238,0.23748709,3134.0,3133.0,0.7552]
[1732043724434,0.1,3134.2,3132.6,0.44504144]
[1732043724435,0.23746152,3133.9,3132.6,0.51416201]
[1732043724634,0.1,3133.7,3132.6,0.07912057]
[1732043724880,0.1,3133.7,3132.3,0.7552]
[1732043724881,0.23746152,3133.6,3132.3,0.7552]
[1732043725066,0.1,3133.7,3132.3,0.7552]
[1732043725067,0.23746152,3133.5,3132.3,0.7552]
[1732043725270,0.1,3133.7,3132.3,0.83407379]
[1732043725608,0.2372181,3133.6,3132.3,0.83407379]
[1732043725972,0.2372181,3133.5,3132.3,0.83407379]
[1732043726173,0.1,3133.3,3132.3,0.7552]
[1732043726413,0.1,3133.3,3132.0,0.7993]
[1732043726705,0.1,3132.9,3131.4,0.7993]
[1732043726915,0.78700784,3132.8,3131.4,0.7993]
[1732043727124,0.1,3132.5,3131.4,0.7993]
[1732043727424,0.1,3132.5,3131.1,0.8224991]
[1732043727717,0.23654147,3132.4,3131.1,0.7858]
[1732043727863,0.23654147,3132.4,3131.1,0.86371851]
[1732043728268,0.1,3132.5,3131.1,0.86371851]
[1732043728489,0.23618153,3132.4,3131.1,0.86371851]
[1732043728929,0.1,3132.5,3131.2,0.49889844]
[1732043729074,0.55,3133.1,3131.3,0.8414]
[1732043729304,0.55,3133.1,3131.4,0.42504144]
[1732043729819,3.0995186,3134.0,3131.4,0.42504144]
[1732043729820,0.55,3133.3,3131.4,0.42504144]
[1732043729975,0.1,3133.0,3131.4,0.42504144]
[1732043730308,0.55,3132.9,3131.4,0.42504144]
[1732043730604,0.55,3132.9,3131.3,0.8314]
[1732043730784,0.55,3132.9,3131.3,1.25644144]
[1732043730984,0.1,3133.0,3131.3,1.26644144]
[1732043731221,0.1,3133.0,3131.8,3.0]
[1732043731511,0.1,3132.8,3131.4,1.25644144]
[1732043731697,0.1,3132.8,3131.1,0.8314]
[1732043731878,0.1,3132.6,3131.1,0.8314]
[1732043734595,0.1,3132.6,3131.1,0.8414]
[1732043734751,0.1,3132.6,3131.2,0.38968436]
[1732043735493,0.1,3132.6,3131.1,0.8314]
[1732043735699,0.1,3132.6,3131.3,0.01]
[1732043735988,0.1,3132.6,3131.3,0.796]
[1732043736195,3.19233,3132.6,3130.9,0.7886]
[1732043736366,3.20172,3133.2,3130.9,0.7886]
[1732043736367,0.1,3132.4,3130.9,0.7886]
[1732043737092,0.1,3132.4,3130.8,0.07867096]
[1732043737298,0.1,3132.4,3130.6,0.7886]
[1732043737495,0.1,3132.4,3130.6,3.7886]
[1732043737680,0.1,3132.2,3130.9,3.0]
[1732043738181,0.1,3132.2,3130.6,0.7886]
[1732043738379,0.1,3132.2,3130.7,0.55]
[1732043738582,0.1,3132.2,3131.2,0.7886]